[Event "Titled Tuesday Blitz August 1 Late 2023"]
[White "Ahn, Hongjin"]
[Black "Suder, Jakub"]
[WhiteFideId "13201492"]
[BlackFideId "1195310"]
[WhiteElo "2335"]
[BlackElo "2583"]
[Result "0-1"]
[Round "1"]
[TimeControl "180+1"]
[Date "2023.08.01"]
[WhiteClock "0:00:00"]
[BlackClock "0:00:32"]
[Board "119"]

1. c4 {[%clk 0:02:58]}  e6 {[%clk 0:02:55]} 2. Nf3 {[%clk 0:02:57]}  d5 {[%clk 0:02:55]} 3. g3 {[%clk 0:02:58]}  Nf6 {[%clk 0:02:55]} 4. Bg2 {[%clk 0:02:58]}  Be7 {[%clk 0:02:55]} 5. O-O {[%clk 0:02:56]}  O-O {[%clk 0:02:55]} 6. b3 {[%clk 0:02:57]}  c5 {[%clk 0:02:51]} 7. Bb2 {[%clk 0:02:57]}  d4 {[%clk 0:02:51]} 8. e3 {[%clk 0:02:56]}  Nc6 {[%clk 0:02:51]} 9. exd4 {[%clk 0:02:57]}  cxd4 {[%clk 0:02:52]} 10. Re1 {[%clk 0:02:57]}  Bc5 {[%clk 0:02:49]} 11. Ne5 {[%clk 0:02:56]}  Nxe5 {[%clk 0:02:46]} 12. Rxe5 {[%clk 0:02:57]}  Nd7 {[%clk 0:02:46]} 13. Re1 {[%clk 0:02:50]}  e5 {[%clk 0:02:46]} 14. d3 {[%clk 0:02:50]}  Qc7 {[%clk 0:02:40]} 15. Nd2 {[%clk 0:02:50]}  Re8 {[%clk 0:02:38]} 16. Ne4 {[%clk 0:02:49]}  Bf8 {[%clk 0:02:38]} 17. Qg4 {[%clk 0:02:43]}  Kh8 {[%clk 0:02:32]} 18. Qh5 {[%clk 0:02:37]}  g6 {[%clk 0:02:29]} 19. Qh4 {[%clk 0:02:34]}  Kg8 {[%clk 0:02:14]} 20. Ng5 {[%clk 0:02:28]}  h6 {[%clk 0:02:14]} 21. Nf3 {[%clk 0:01:51]}  Re6 {[%clk 0:02:07]} 22. Bh3 {[%clk 0:01:44]}  Re7 {[%clk 0:01:59]} 23. Nxd4 {[%clk 0:01:23]}  g5 {[%clk 0:01:45]} 24. Nb5 {[%clk 0:01:19]}  Qc6 {[%clk 0:01:32]} 25. Qe4 {[%clk 0:01:12]}  Nc5 {[%clk 0:01:26]} 26. Qxc6 {[%clk 0:00:56]}  bxc6 {[%clk 0:01:27]} 27. Bxc8 {[%clk 0:00:52]}  Rxc8 {[%clk 0:01:11]} 28. Nd6 {[%clk 0:00:50]}  Rd8 {[%clk 0:01:09]} 29. Nf5 {[%clk 0:00:47]}  Red7 {[%clk 0:01:06]} 30. Bxe5 {[%clk 0:00:27]}  Nxd3 {[%clk 0:01:05]} 31. Re3 {[%clk 0:00:25]}  Bc5 {[%clk 0:01:00]} 32. Nxh6+ {[%clk 0:00:15]}  Kh7 {[%clk 0:00:59]} 33. Rxd3 {[%clk 0:00:14]}  Rxd3 {[%clk 0:00:58]} 34. Ng4 {[%clk 0:00:15]}  Kg6 {[%clk 0:00:55]} 35. h4 {[%clk 0:00:09]}  gxh4 {[%clk 0:00:55]} 36. gxh4 {[%clk 0:00:09]}  f5 {[%clk 0:00:52]} 37. Nh2 {[%clk 0:00:09]}  Rd1+ {[%clk 0:00:49]} 38. Rxd1 {[%clk 0:00:09]}  Rxd1+ {[%clk 0:00:50]} 39. Kg2 {[%clk 0:00:09]}  Rd2 {[%clk 0:00:51]} 40. Bg3 {[%clk 0:00:09]}  f4 {[%clk 0:00:51]} 41. Bxf4 {[%clk 0:00:09]}  Rxf2+ {[%clk 0:00:51]} 42. Kg3 {[%clk 0:00:09]}  Rxa2 {[%clk 0:00:49]} 43. Ng4 {[%clk 0:00:09]}  Kf5 {[%clk 0:00:44]} 44. Nh6+ {[%clk 0:00:09]}  Ke6 {[%clk 0:00:44]} 45. Ng4 {[%clk 0:00:09]}  Ra3 {[%clk 0:00:43]} 46. Bg5 {[%clk 0:00:04]}  Rxb3+ {[%clk 0:00:43]} 47. Kf4 {[%clk 0:00:04]}  Bd6+ {[%clk 0:00:44]} 48. Ke4 {[%clk 0:00:04]}  a5 {[%clk 0:00:43]} 49. h5 {[%clk 0:00:04]}  Rh3 {[%clk 0:00:40]} 50. h6 {[%clk 0:00:04]}  a4 {[%clk 0:00:40]} 51. Ne3 {[%clk 0:00:03]}  a3 {[%clk 0:00:38]} 52. Nc2 {[%clk 0:00:03]}  a2 {[%clk 0:00:37]} 53. Bc1 {[%clk 0:00:02]}  Be5 {[%clk 0:00:35]} 54. c5 {[%clk 0:00:02]}  Rc3 {[%clk 0:00:35]} 55. Bf4 {[%clk 0:00:01]}  Bxf4 {[%clk 0:00:34]} 56. Nd4+ {[%clk 0:00:00]}  Kf7 {[%clk 0:00:32]} 0-1


[Site "https://www.chess.com"]

[Event "Titled Tuesday Blitz August 1 Late 2023"]
[White "Garcia-Castany Musellas, Gal.la"]
[Black "Ibadov, Dashgyn"]
[WhiteFideId "2241803"]
[BlackFideId "24107514"]
[WhiteElo "2335"]
[BlackElo "2578"]
[Result "0-1"]
[Round "1"]
[TimeControl "180+1"]
[Date "2023.08.01"]
[WhiteClock "0:00:25"]
[BlackClock "0:02:09"]
[Board "121"]

1. e4 {[%clk 0:02:59]}  e6 {[%clk 0:02:59]} 2. d4 {[%clk 0:02:59]}  d5 {[%clk 0:03:00]} 3. Nd2 {[%clk 0:02:58]}  Nf6 {[%clk 0:02:58]} 4. e5 {[%clk 0:02:58]}  Nfd7 {[%clk 0:02:58]} 5. Bd3 {[%clk 0:02:57]}  c5 {[%clk 0:02:59]} 6. c3 {[%clk 0:02:56]}  Nc6 {[%clk 0:02:59]} 7. Ne2 {[%clk 0:02:56]}  cxd4 {[%clk 0:03:00]} 8. cxd4 {[%clk 0:02:57]}  Qb6 {[%clk 0:03:00]} 9. Nf3 {[%clk 0:02:56]}  f6 {[%clk 0:03:01]} 10. exf6 {[%clk 0:02:57]}  Nxf6 {[%clk 0:03:01]} 11. O-O {[%clk 0:02:56]}  Bd6 {[%clk 0:03:02]} 12. Bf4 {[%clk 0:02:52]}  Bxf4 {[%clk 0:03:01]} 13. Nxf4 {[%clk 0:02:53]}  Qxb2 {[%clk 0:03:01]} 14. Re1 {[%clk 0:02:46]}  O-O {[%clk 0:03:00]} 15. Nxe6 {[%clk 0:02:35]}  Bxe6 {[%clk 0:03:01]} 16. Rxe6 {[%clk 0:02:35]}  Rae8 {[%clk 0:03:02]} 17. Rxe8 {[%clk 0:02:26]}  Rxe8 {[%clk 0:03:03]} 18. Rb1 {[%clk 0:02:26]}  Qxa2 {[%clk 0:03:03]} 19. Rxb7 {[%clk 0:02:20]}  Ne4 {[%clk 0:02:41]} 20. Bxe4 {[%clk 0:01:34]}  dxe4 {[%clk 0:02:41]} 21. Ng5 {[%clk 0:01:30]}  h6 {[%clk 0:02:28]} 22. h4 {[%clk 0:00:56]}  hxg5 {[%clk 0:02:22]} 23. Qh5 {[%clk 0:00:32]}  Rf8 {[%clk 0:02:19]} 24. Qg6 {[%clk 0:00:32]}  Qxf2+ {[%clk 0:02:19]} 25. Kh2 {[%clk 0:00:31]}  Qxh4+ {[%clk 0:02:17]} 26. Kg1 {[%clk 0:00:31]}  Qf2+ {[%clk 0:02:14]} 27. Kh2 {[%clk 0:00:25]}  Qf6 {[%clk 0:02:09]} 0-1


[Site "https://www.chess.com"]

[Event "Titled Tuesday Blitz August 1 Late 2023"]
[White "ElenGajger"]
[Black "Lacasa Diaz, Jose Antonio"]
[BlackFideId "2203375"]
[WhiteElo "2572"]
[BlackElo "2328"]
[Result "1-0"]
[Round "1"]
[TimeControl "180+1"]
[Date "2023.08.01"]
[WhiteClock "0:01:03"]
[BlackClock "0:00:10"]
[Board "126"]

1. e4 {[%clk 0:03:00]}  c5 {[%clk 0:03:00]} 2. Nc3 {[%clk 0:02:58]}  g6 {[%clk 0:02:59]} 3. f4 {[%clk 0:02:57]}  Bg7 {[%clk 0:02:59]} 4. Nf3 {[%clk 0:02:58]}  Nc6 {[%clk 0:02:58]} 5. Bb5 {[%clk 0:02:58]}  Nd4 {[%clk 0:02:58]} 6. Bc4 {[%clk 0:02:58]}  e6 {[%clk 0:02:53]} 7. O-O {[%clk 0:02:54]}  Ne7 {[%clk 0:02:51]} 8. Nxd4 {[%clk 0:02:55]}  cxd4 {[%clk 0:02:51]} 9. Ne2 {[%clk 0:02:52]}  O-O {[%clk 0:02:28]} 10. Bb3 {[%clk 0:02:48]}  d5 {[%clk 0:02:22]} 11. e5 {[%clk 0:02:48]}  Qb6 {[%clk 0:02:18]} 12. d3 {[%clk 0:02:46]}  Bd7 {[%clk 0:02:06]} 13. Qe1 {[%clk 0:02:43]}  a5 {[%clk 0:01:59]} 14. a4 {[%clk 0:02:42]}  Rac8 {[%clk 0:01:45]} 15. Qf2 {[%clk 0:02:41]}  Nc6 {[%clk 0:01:41]} 16. Bd2 {[%clk 0:02:36]}  Rc7 {[%clk 0:01:16]} 17. g4 {[%clk 0:02:35]}  Rfc8 {[%clk 0:01:14]} 18. h4 {[%clk 0:02:32]}  Bf8 {[%clk 0:01:02]} 19. h5 {[%clk 0:02:27]}  Nb4 {[%clk 0:01:01]} 20. Bxb4 {[%clk 0:02:18]}  Qxb4 {[%clk 0:00:57]} 21. Ng3 {[%clk 0:02:05]}  b5 {[%clk 0:00:49]} 22. hxg6 {[%clk 0:01:48]}  hxg6 {[%clk 0:00:47]} 23. f5 {[%clk 0:01:44]}  Be8 {[%clk 0:00:19]} 24. fxg6 {[%clk 0:01:32]}  fxg6 {[%clk 0:00:18]} 25. axb5 {[%clk 0:01:25]}  Bxb5 {[%clk 0:00:17]} 26. Qf6 {[%clk 0:01:15]}  a4 {[%clk 0:00:14]} 27. Qxg6+ {[%clk 0:01:11]}  Bg7 {[%clk 0:00:13]} 28. Nh5 {[%clk 0:01:05]}  axb3 {[%clk 0:00:11]} 29. Nf6+ {[%clk 0:01:04]}  Kh8 {[%clk 0:00:10]} 30. Qh7# {[%clk 0:01:03]} 1-0


[Site "https://www.chess.com"]

[Event "Titled Tuesday Blitz August 1 Late 2023"]
[White "Domingo Nunez, Ruben"]
[Black "Crispin Ferreras, Darvi Abraham"]
[WhiteFideId "22245570"]
[BlackFideId "6402771"]
[WhiteElo "2563"]
[BlackElo "2312"]
[Result "1-0"]
[Round "1"]
[TimeControl "180+1"]
[Date "2023.08.01"]
[WhiteClock "0:00:06"]
[BlackClock "0:00:12"]
[Board "130"]

1. Nf3 {[%clk 0:02:57]}  Nf6 {[%clk 0:02:59]} 2. c4 {[%clk 0:02:55]}  e6 {[%clk 0:02:58]} 3. b3 {[%clk 0:02:54]}  d5 {[%clk 0:02:58]} 4. Bb2 {[%clk 0:02:55]}  Be7 {[%clk 0:02:57]} 5. e3 {[%clk 0:02:55]}  O-O {[%clk 0:02:57]} 6. Be2 {[%clk 0:02:55]}  c5 {[%clk 0:02:45]} 7. O-O {[%clk 0:02:53]}  Nc6 {[%clk 0:02:45]} 8. cxd5 {[%clk 0:02:48]}  Nxd5 {[%clk 0:02:45]} 9. Na3 {[%clk 0:02:48]}  Bf6 {[%clk 0:02:43]} 10. Qc1 {[%clk 0:02:48]}  b6 {[%clk 0:02:42]} 11. d4 {[%clk 0:02:47]}  Be7 {[%clk 0:02:37]} 12. Rd1 {[%clk 0:02:32]}  Qe8 {[%clk 0:02:32]} 13. e4 {[%clk 0:02:11]}  Nf6 {[%clk 0:02:27]} 14. Nb5 {[%clk 0:02:10]}  Rb8 {[%clk 0:02:15]} 15. d5 {[%clk 0:02:04]}  exd5 {[%clk 0:02:05]} 16. exd5 {[%clk 0:02:05]}  Nb4 {[%clk 0:02:04]} 17. d6 {[%clk 0:01:06]}  Bd8 {[%clk 0:02:00]} 18. Bc4 {[%clk 0:00:55]}  a6 {[%clk 0:01:56]} 19. Nc7 {[%clk 0:00:44]}  Qc6 {[%clk 0:01:37]} 20. a3 {[%clk 0:00:32]}  Bg4 {[%clk 0:01:32]} 21. axb4 {[%clk 0:00:31]}  Bxf3 {[%clk 0:01:31]} 22. gxf3 {[%clk 0:00:31]}  Qxf3 {[%clk 0:01:31]} 23. Qe3 {[%clk 0:00:27]}  Qf5 {[%clk 0:01:25]} 24. Bxa6 {[%clk 0:00:17]}  Ng4 {[%clk 0:01:22]} 25. Qg3 {[%clk 0:00:17]}  h5 {[%clk 0:01:12]} 26. Bd3 {[%clk 0:00:16]}  Qd7 {[%clk 0:00:50]} 27. h3 {[%clk 0:00:16]}  Nf6 {[%clk 0:00:50]} 28. Nd5 {[%clk 0:00:12]}  Kh8 {[%clk 0:00:43]} 29. Nxf6 {[%clk 0:00:09]}  gxf6 {[%clk 0:00:43]} 30. Kh2 {[%clk 0:00:08]}  Rg8 {[%clk 0:00:43]} 31. Qf4 {[%clk 0:00:09]}  Rg7 {[%clk 0:00:22]} 32. Rg1 {[%clk 0:00:07]}  Qe6 {[%clk 0:00:12]} 33. Qh6+ {[%clk 0:00:07]}  Rh7 {[%clk 0:00:12]} 34. Qf8# {[%clk 0:00:06]} 1-0


[Site "https://www.chess.com"]

[Event "Titled Tuesday Blitz August 1 Late 2023"]
[White "Fuzesabonyilaci"]
[Black "Musovic, Armin"]
[BlackFideId "939935"]
[WhiteElo "2311"]
[BlackElo "2561"]
[Result "0-1"]
[Round "1"]
[TimeControl "180+1"]
[Date "2023.08.01"]
[WhiteClock "0:00:07"]
[BlackClock "0:00:37"]
[Board "131"]

1. d4 {[%clk 0:02:59]}  d5 {[%clk 0:03:00]} 2. Nc3 {[%clk 0:02:58]}  c5 {[%clk 0:03:01]} 3. e4 {[%clk 0:02:50]}  dxe4 {[%clk 0:03:00]} 4. d5 {[%clk 0:02:47]}  a6 {[%clk 0:03:00]} 5. Nxe4 {[%clk 0:02:43]}  Nf6 {[%clk 0:03:01]} 6. Nxf6+ {[%clk 0:02:41]}  exf6 {[%clk 0:03:02]} 7. c4 {[%clk 0:02:40]}  Bd6 {[%clk 0:03:02]} 8. Nf3 {[%clk 0:02:38]}  O-O {[%clk 0:03:02]} 9. Be2 {[%clk 0:02:38]}  Re8 {[%clk 0:03:02]} 10. O-O {[%clk 0:02:39]}  Nd7 {[%clk 0:03:03]} 11. Bd2 {[%clk 0:02:33]}  Nf8 {[%clk 0:03:00]} 12. Bc3 {[%clk 0:02:32]}  Bg4 {[%clk 0:02:59]} 13. h3 {[%clk 0:02:32]}  Bh5 {[%clk 0:03:00]} 14. a4 {[%clk 0:02:30]}  Qc7 {[%clk 0:02:57]} 15. Re1 {[%clk 0:02:28]}  Re4 {[%clk 0:02:55]} 16. Nd2 {[%clk 0:02:21]}  Bxe2 {[%clk 0:02:46]} 17. Rxe2 {[%clk 0:02:21]}  Rh4 {[%clk 0:02:46]} 18. Qb3 {[%clk 0:02:12]}  h6 {[%clk 0:02:41]} 19. a5 {[%clk 0:02:05]}  Bh2+ {[%clk 0:02:38]} 20. Kh1 {[%clk 0:01:59]}  Bf4 {[%clk 0:02:35]} 21. Nf3 {[%clk 0:01:54]}  Rh5 {[%clk 0:02:33]} 22. Kg1 {[%clk 0:01:49]}  Bd6 {[%clk 0:02:32]} 23. Rae1 {[%clk 0:01:45]}  Qd7 {[%clk 0:02:32]} 24. Nd2 {[%clk 0:01:36]}  Ng6 {[%clk 0:02:24]} 25. Ne4 {[%clk 0:01:27]}  Nf4 {[%clk 0:02:15]} 26. Re3 {[%clk 0:01:26]}  Be7 {[%clk 0:01:43]} 27. Rf3 {[%clk 0:01:04]}  Rf5 {[%clk 0:01:43]} 28. Bd2 {[%clk 0:00:58]}  Bd6 {[%clk 0:01:34]} 29. Nxd6 {[%clk 0:00:52]}  Qxd6 {[%clk 0:01:35]} 30. g4 {[%clk 0:00:48]}  Nxh3+ {[%clk 0:01:27]} 31. Rxh3 {[%clk 0:00:48]}  Re5 {[%clk 0:01:24]} 32. Qxb7 {[%clk 0:00:37]}  Rb8 {[%clk 0:01:23]} 33. Qc6 {[%clk 0:00:34]}  Rxe1+ {[%clk 0:01:21]} 34. Bxe1 {[%clk 0:00:34]}  Qf4 {[%clk 0:01:18]} 35. Bc3 {[%clk 0:00:30]}  Qxg4+ {[%clk 0:01:13]} 36. Rg3 {[%clk 0:00:30]}  Qd1+ {[%clk 0:01:07]} 37. Kg2 {[%clk 0:00:31]}  Kh7 {[%clk 0:00:48]} 38. Qxa6 {[%clk 0:00:20]}  Re8 {[%clk 0:00:39]} 39. Qc6 {[%clk 0:00:17]}  Re4 {[%clk 0:00:39]} 40. d6 {[%clk 0:00:16]}  Rh4 {[%clk 0:00:39]} 41. f4 {[%clk 0:00:08]}  Qh1+ {[%clk 0:00:38]} 42. Kf2 {[%clk 0:00:08]}  Qxc6 {[%clk 0:00:39]} 43. Rd3 {[%clk 0:00:07]}  Rh2+ {[%clk 0:00:37]} 44. Ke3 {[%clk 0:00:06]}  Rh3+ {[%clk 0:00:36]} 45. Kd2 {[%clk 0:00:06]}  Rxd3+ {[%clk 0:00:37]} 46. Kxd3 {[%clk 0:00:07]}  Qxd6+ {[%clk 0:00:38]} 47. Kc2 {[%clk 0:00:07]}  Qxf4 {[%clk 0:00:37]} 0-1


[Site "https://www.chess.com"]

[Event "Titled Tuesday Blitz August 1 Late 2023"]
[White "Karamsetty, Jeevan"]
[Black "Stanisz, Patryk"]
[WhiteFideId "2025337"]
[BlackFideId "1123106"]
[WhiteElo "2558"]
[BlackElo "2310"]
[Result "1-0"]
[Round "1"]
[TimeControl "180+1"]
[Date "2023.08.01"]
[WhiteClock "0:00:12"]
[BlackClock "0:00:03"]
[Board "132"]

1. e4 {[%clk 0:03:00]}  c5 {[%clk 0:02:58]} 2. Nc3 {[%clk 0:03:00]}  Nc6 {[%clk 0:02:58]} 3. Bb5 {[%clk 0:02:59]}  Nd4 {[%clk 0:02:58]} 4. Bc4 {[%clk 0:02:59]}  e6 {[%clk 0:02:58]} 5. Nge2 {[%clk 0:02:57]}  Nxe2 {[%clk 0:02:56]} 6. Qxe2 {[%clk 0:02:55]}  d6 {[%clk 0:02:57]} 7. O-O {[%clk 0:02:48]}  Nf6 {[%clk 0:02:57]} 8. f4 {[%clk 0:02:43]}  a6 {[%clk 0:02:55]} 9. a4 {[%clk 0:02:40]}  Rb8 {[%clk 0:02:50]} 10. e5 {[%clk 0:02:25]}  dxe5 {[%clk 0:02:44]} 11. fxe5 {[%clk 0:02:24]}  Nd5 {[%clk 0:02:45]} 12. Qf3 {[%clk 0:02:15]}  Qc7 {[%clk 0:02:13]} 13. Nxd5 {[%clk 0:01:51]}  exd5 {[%clk 0:02:12]} 14. Bxd5 {[%clk 0:01:52]}  Be6 {[%clk 0:02:12]} 15. Bxe6 {[%clk 0:01:52]}  fxe6 {[%clk 0:02:13]} 16. d3 {[%clk 0:01:46]}  Rd8 {[%clk 0:02:04]} 17. Bg5 {[%clk 0:01:34]}  Rd5 {[%clk 0:02:00]} 18. Rae1 {[%clk 0:01:30]}  c4 {[%clk 0:01:54]} 19. Qg4 {[%clk 0:01:06]}  Rxe5 {[%clk 0:01:38]} 20. Bf4 {[%clk 0:00:56]}  Qb6+ {[%clk 0:01:38]} 21. Kh1 {[%clk 0:00:55]}  Rxe1 {[%clk 0:01:20]} 22. Rxe1 {[%clk 0:00:56]}  Be7 {[%clk 0:01:15]} 23. Rxe6 {[%clk 0:00:36]}  Qxb2 {[%clk 0:01:08]} 24. h3 {[%clk 0:00:30]}  Rf8 {[%clk 0:00:25]} 25. Qh5+ {[%clk 0:00:21]}  Rf7 {[%clk 0:00:23]} 26. Qc5 {[%clk 0:00:14]}  Qa1+ {[%clk 0:00:05]} 27. Kh2 {[%clk 0:00:12]}  Kd7 {[%clk 0:00:01]} 28. Qd5+ {[%clk 0:00:07]}  Ke8 {[%clk 0:00:01]} 29. Qxc4 {[%clk 0:00:04]}  Rxf4 {[%clk 0:00:02]} 30. Qxf4 {[%clk 0:00:05]}  Qxa4 {[%clk 0:00:01]} 31. Qxa4+ {[%clk 0:00:04]}  Kf7 {[%clk 0:00:01]} 32. Qe4 {[%clk 0:00:05]}  Bf6 {[%clk 0:00:01]} 33. Rxf6+ {[%clk 0:00:05]}  gxf6 {[%clk 0:00:02]} 34. d4 {[%clk 0:00:06]}  a5 {[%clk 0:00:01]} 35. Qd3 {[%clk 0:00:07]}  a4 {[%clk 0:00:02]} 36. d5 {[%clk 0:00:08]}  a3 {[%clk 0:00:03]} 37. Qxa3 {[%clk 0:00:08]}  Kg6 {[%clk 0:00:02]} 38. Qd3+ {[%clk 0:00:09]}  f5 {[%clk 0:00:02]} 39. d6 {[%clk 0:00:10]}  h5 {[%clk 0:00:03]} 40. d7 {[%clk 0:00:11]}  Kg5 {[%clk 0:00:03]} 41. d8=Q+ {[%clk 0:00:11]}  Kh6 {[%clk 0:00:04]} 42. Qf6+ {[%clk 0:00:11]}  Kh7 {[%clk 0:00:03]} 43. Qd7+ {[%clk 0:00:12]} 1-0


[Site "https://www.chess.com"]

[Event "Titled Tuesday Blitz August 1 Late 2023"]
[White "Harish, Neeraj"]
[Black "Golubev, Mikhail"]
[WhiteFideId "30958130"]
[BlackFideId "14100983"]
[WhiteElo "2305"]
[BlackElo "2556"]
[Result "0-1"]
[Round "1"]
[TimeControl "180+1"]
[Date "2023.08.01"]
[WhiteClock "0:02:33"]
[BlackClock "0:02:17"]
[Board "135"]

1. e4 {[%clk 0:02:57]}  c5 {[%clk 0:02:59]} 2. Nf3 {[%clk 0:02:56]}  d6 {[%clk 0:02:59]} 3. d4 {[%clk 0:02:56]}  cxd4 {[%clk 0:02:59]} 4. Nxd4 {[%clk 0:02:56]}  Nf6 {[%clk 0:02:59]} 5. Nc3 {[%clk 0:02:57]}  g6 {[%clk 0:02:59]} 6. Be3 {[%clk 0:02:56]}  Bg7 {[%clk 0:03:00]} 7. f3 {[%clk 0:02:56]}  Nc6 {[%clk 0:03:00]} 8. Qd2 {[%clk 0:02:56]}  O-O {[%clk 0:03:00]} 9. Bc4 {[%clk 0:02:56]}  Nxd4 {[%clk 0:02:56]} 10. Bxd4 {[%clk 0:02:55]}  Be6 {[%clk 0:02:57]} 11. Bxe6 {[%clk 0:02:55]}  fxe6 {[%clk 0:02:56]} 12. O-O-O {[%clk 0:02:56]}  Qa5 {[%clk 0:02:34]} 13. Kb1 {[%clk 0:02:42]}  Rac8 {[%clk 0:02:29]} 14. Rhe1 {[%clk 0:02:39]}  e5 {[%clk 0:02:21]} 15. Be3 {[%clk 0:02:34]}  Rc6 {[%clk 0:02:17]} 16. Bd4 {[%clk 0:02:33]} 0-1


[Site "https://www.chess.com"]

[Event "Titled Tuesday Blitz August 1 Late 2023"]
[White "Ardila, Oscar Humberto"]
[Black "Fiorito, Francisco"]
[WhiteFideId "4404742"]
[BlackFideId "180165"]
[WhiteElo "2299"]
[BlackElo "2553"]
[Result "1-0"]
[Round "1"]
[TimeControl "180+1"]
[Date "2023.08.01"]
[WhiteClock "0:00:16"]
[BlackClock "0:00:00"]
[Board "139"]

1. d4 {[%clk 0:02:59]}  a6 {[%clk 0:02:58]} 2. Nf3 {[%clk 0:02:59]}  b5 {[%clk 0:02:58]} 3. e4 {[%clk 0:02:58]}  Bb7 {[%clk 0:02:59]} 4. Bd3 {[%clk 0:02:57]}  e6 {[%clk 0:02:58]} 5. O-O {[%clk 0:02:57]}  Nf6 {[%clk 0:02:56]} 6. Re1 {[%clk 0:02:57]}  Be7 {[%clk 0:02:50]} 7. a4 {[%clk 0:02:56]}  b4 {[%clk 0:02:49]} 8. Nbd2 {[%clk 0:02:51]}  d5 {[%clk 0:02:48]} 9. e5 {[%clk 0:02:51]}  Nfd7 {[%clk 0:02:48]} 10. Nf1 {[%clk 0:02:44]}  c5 {[%clk 0:02:47]} 11. c3 {[%clk 0:02:44]}  bxc3 {[%clk 0:02:47]} 12. bxc3 {[%clk 0:02:44]}  Nc6 {[%clk 0:02:47]} 13. Rb1 {[%clk 0:02:40]}  Rb8 {[%clk 0:02:45]} 14. Qe2 {[%clk 0:02:35]}  cxd4 {[%clk 0:02:35]} 15. cxd4 {[%clk 0:02:34]}  Nb4 {[%clk 0:02:35]} 16. Ba3 {[%clk 0:02:20]}  a5 {[%clk 0:02:25]} 17. Bb5 {[%clk 0:02:18]}  O-O {[%clk 0:02:24]} 18. Rec1 {[%clk 0:02:02]}  Nb6 {[%clk 0:02:17]} 19. Ne3 {[%clk 0:01:54]}  Rc8 {[%clk 0:01:53]} 20. h3 {[%clk 0:01:50]}  h6 {[%clk 0:01:50]} 21. Ne1 {[%clk 0:01:37]}  Na8 {[%clk 0:01:13]} 22. Rxc8 {[%clk 0:01:22]}  Bxc8 {[%clk 0:01:07]} 23. Nd3 {[%clk 0:01:15]}  Nxd3 {[%clk 0:00:43]} 24. Qxd3 {[%clk 0:01:11]}  Bd7 {[%clk 0:00:34]} 25. Bc5 {[%clk 0:01:02]}  Nc7 {[%clk 0:00:20]} 26. Bb6 {[%clk 0:00:56]}  Bb4 {[%clk 0:00:19]} 27. Rc1 {[%clk 0:00:51]}  Nxb5 {[%clk 0:00:12]} 28. Bxd8 {[%clk 0:00:50]}  Nxd4 {[%clk 0:00:10]} 29. Qxd4 {[%clk 0:00:45]}  Rxd8 {[%clk 0:00:09]} 30. Qa7 {[%clk 0:00:44]}  Bxa4 {[%clk 0:00:09]} 31. Rc7 {[%clk 0:00:41]}  Rf8 {[%clk 0:00:06]} 32. Ng4 {[%clk 0:00:40]}  h5 {[%clk 0:00:05]} 33. Ne3 {[%clk 0:00:37]}  Bb5 {[%clk 0:00:04]} 34. Qb7 {[%clk 0:00:34]}  Bd3 {[%clk 0:00:04]} 35. Rc8 {[%clk 0:00:33]}  d4 {[%clk 0:00:03]} 36. Rxf8+ {[%clk 0:00:31]}  Bxf8 {[%clk 0:00:04]} 37. Nf1 {[%clk 0:00:28]}  Bc2 {[%clk 0:00:02]} 38. Qb6 {[%clk 0:00:24]}  d3 {[%clk 0:00:01]} 39. Qxa5 {[%clk 0:00:24]}  g6 {[%clk 0:00:02]} 40. Ne3 {[%clk 0:00:23]}  Bh6 {[%clk 0:00:02]} 41. Qd8+ {[%clk 0:00:18]}  Kh7 {[%clk 0:00:02]} 42. Qc7 {[%clk 0:00:17]}  Bb3 {[%clk 0:00:01]} 43. Qxf7+ {[%clk 0:00:16]}  Bg7 {[%clk 0:00:00]} 44. Qd7 {[%clk 0:00:16]} 1-0


[Site "https://www.chess.com"]

[Event "Titled Tuesday Blitz August 1 Late 2023"]
[White "Georg, Heinz"]
[Black "Castaneda, Jhon David"]
[WhiteFideId "4607295"]
[BlackFideId "4405048"]
[WhiteElo "2294"]
[BlackElo "2550"]
[Result "0-1"]
[Round "1"]
[TimeControl "180+1"]
[Date "2023.08.01"]
[WhiteClock "0:00:00"]
[BlackClock "0:00:20"]
[Board "141"]

1. c4 {[%clk 0:02:28]}  e6 {[%clk 0:02:59]} 2. Nc3 {[%clk 0:02:27]}  c5 {[%clk 0:02:59]} 3. e4 {[%clk 0:02:22]}  Nc6 {[%clk 0:02:58]} 4. g3 {[%clk 0:02:14]}  g6 {[%clk 0:02:56]} 5. Bg2 {[%clk 0:02:13]}  Bg7 {[%clk 0:02:56]} 6. Nge2 {[%clk 0:02:14]}  Nge7 {[%clk 0:02:55]} 7. O-O {[%clk 0:02:14]}  O-O {[%clk 0:02:54]} 8. d3 {[%clk 0:02:09]}  d6 {[%clk 0:02:54]} 9. Be3 {[%clk 0:02:02]}  Nd4 {[%clk 0:02:53]} 10. f4 {[%clk 0:01:40]}  f5 {[%clk 0:02:52]} 11. Rb1 {[%clk 0:01:32]}  Nec6 {[%clk 0:02:48]} 12. a3 {[%clk 0:01:31]}  a5 {[%clk 0:02:47]} 13. Bxd4 {[%clk 0:01:29]}  Nxd4 {[%clk 0:02:45]} 14. Kh1 {[%clk 0:01:21]}  Qb6 {[%clk 0:02:40]} 15. Nxd4 {[%clk 0:01:20]}  Bxd4 {[%clk 0:02:39]} 16. Ne2 {[%clk 0:01:21]}  Bg7 {[%clk 0:02:39]} 17. Qc2 {[%clk 0:01:12]}  Bd7 {[%clk 0:02:38]} 18. Qd2 {[%clk 0:00:59]}  a4 {[%clk 0:02:33]} 19. Rfd1 {[%clk 0:00:56]}  Kh8 {[%clk 0:02:23]} 20. d4 {[%clk 0:00:54]}  cxd4 {[%clk 0:02:15]} 21. Nxd4 {[%clk 0:00:55]}  Rac8 {[%clk 0:02:09]} 22. exf5 {[%clk 0:00:55]}  gxf5 {[%clk 0:02:08]} 23. Qe3 {[%clk 0:00:54]}  Rxc4 {[%clk 0:02:04]} 24. Nxf5 {[%clk 0:00:52]}  Qxe3 {[%clk 0:01:59]} 25. Nxe3 {[%clk 0:00:53]}  Rc7 {[%clk 0:01:55]} 26. Rxd6 {[%clk 0:00:52]}  Rb8 {[%clk 0:01:43]} 27. h3 {[%clk 0:00:48]}  Bf8 {[%clk 0:01:42]} 28. Rd2 {[%clk 0:00:39]}  b5 {[%clk 0:01:32]} 29. Ng4 {[%clk 0:00:38]}  b4 {[%clk 0:01:29]} 30. Rbd1 {[%clk 0:00:37]}  Bb5 {[%clk 0:01:16]} 31. axb4 {[%clk 0:00:33]}  Be7 {[%clk 0:00:59]} 32. Ne5 {[%clk 0:00:31]}  Be8 {[%clk 0:00:59]} 33. Nd7 {[%clk 0:00:26]}  Rxb4 {[%clk 0:00:57]} 34. Ne5 {[%clk 0:00:19]}  Bh5 {[%clk 0:00:52]} 35. g4 {[%clk 0:00:19]}  Be8 {[%clk 0:00:51]} 36. Rf1 {[%clk 0:00:18]}  Bb5 {[%clk 0:00:46]} 37. Rff2 {[%clk 0:00:17]}  Bc5 {[%clk 0:00:44]} 38. Rf3 {[%clk 0:00:16]}  Be7 {[%clk 0:00:39]} 39. Rc3 {[%clk 0:00:16]}  Ra7 {[%clk 0:00:33]} 40. f5 {[%clk 0:00:14]}  Bf6 {[%clk 0:00:31]} 41. Re3 {[%clk 0:00:14]}  Bg5 {[%clk 0:00:30]} 42. Red3 {[%clk 0:00:04]}  Bxd3 {[%clk 0:00:25]} 43. Rxd3 {[%clk 0:00:05]}  exf5 {[%clk 0:00:24]} 44. gxf5 {[%clk 0:00:06]}  Rxb2 {[%clk 0:00:22]} 45. Rd8+ {[%clk 0:00:06]}  Kg7 {[%clk 0:00:22]} 46. Ng4 {[%clk 0:00:06]}  a3 {[%clk 0:00:21]} 47. Rd6 {[%clk 0:00:04]}  a2 {[%clk 0:00:20]} 48. f6+ {[%clk 0:00:00]}  Bxf6 {[%clk 0:00:20]} 0-1


[Site "https://www.chess.com"]